Cogmind - Beta 16.1 @@@ ROGUE MODE // 2026.02.13 @ 12:30:31 Player: Lintence Result: Destroyed by P-80 Master with Gamma Rifle Performance ------------- Evolutions (7) 3500 Regions Visited (10) 2000 Robots Destroyed (63) 315 Value Destroyed (2786) 2786 Prototype IDs (17) 340 Alien Tech Used (0) 0 Bonus (200) 200 TOTAL SCORE: 9141 Bonus ------- Pacifist 200 Cogmind --------- Core Integrity 0/1300 Matter 280/300 Energy 3/100 System Corruption 6% Temperature Cool (0) Movement Flying (37) Location -3/Testing Parts ------- > --- POWER (2) -------- (None) > --- PROPULSION (6) --- Impulse Thruster Impulse Thruster Array Impulse Thruster Array > --- UTILITY (11) ----- Advanced Signal Interpreter Advanced Melee Analysis Suite Advanced Melee Analysis Suite Core Analyzer Centrium Light Armor Plating > --- WEAPON (2) ------- Plasma Lance > --- INVENTORY (5) ---- Nuclear Pulse Array Field Propulsion Array Advanced Sensor Array Peak State ------------ > --- POWER ------------ Light Particle Reactor Light Particle Reactor > --- PROPULSION ------- Q-thruster Electron Diverter Impulse Thruster Array Impulse Thruster Array > --- UTILITY ---------- Medium Storage Unit Gravity Neutralizer Advanced Signal Interpreter Advanced Melee Analysis Suite Advanced Melee Analysis Suite Advanced Melee Analysis Suite Advanced Target Analyzer Core Analyzer Core Analyzer Improved Phase Shifter Advanced Force Field > --- WEAPON ----------- Gamma Rifle Enhanced Force Lance > --- INVENTORY -------- Light Particle Reactor Nuclear Pulse Array Impulse Thruster Field Propulsion Array Advanced Sensor Array Advanced ECM Suite Improved Phase Shifter Gamma Rifle [Rating: 144] Favorites ----------- Power Light Fission Core Engine Ion Engine Power Core Light Fission Core Reactor Light Particle Reactor Propulsion Cesium-ion Thruster Leg Aluminum Leg Hover Unit Improved Hover Unit Flight Unit Cesium-ion Thruster Utility Core Analyzer Device Advanced Sensor Array Storage Medium Storage Unit Processor Core Analyzer Hackware Hacking Suite Protection Hardened Medium Armor Plating Weapon Katana Energy Gun Improved EM Shotgun Ballistic Gun Assault Rifle Launcher Improved Grenade Launcher Slashing Weapon Katana Piercing Weapon Enhanced Force Lance Build | -11 -10 -9 -8 -7 -6 -6 -5 -4 -3 -3 ------- Run | Yrd Mat Mat Mat Fac Fac Ext Fac Fac Res Tes Slots Evolved 14 | . . 2 2 2 2 . 2 2 2 . Power 1 | . . . . . . . 1 . . . Propulsion 4 | . . . 1 1 . . 1 . 1 . Utility 9 | . . 2 1 1 2 . . 2 1 . Weapon . | . . . . . . . . . . . Parts Attached 138 | 6 1 16 22 10 10 10 15 3 18 27 Power 21 | 1 . 3 3 1 2 2 2 . 1 6 Engine 5 | 1 . 2 . 1 . . 1 . . . Core 9 | . . 1 3 . 2 2 1 . . . Reactor 7 | . . . . . . . . . 1 6 Propulsion 39 | 2 . 4 7 4 1 5 3 2 7 4 Treads . | . . . . . . . . . . . Leg 13 | 2 . 4 7 . . . . . . . Wheel . | . . . . . . . . . . . Hover 7 | . . . . . . . 2 2 3 . Flight 19 | . . . . 4 1 5 1 . 4 4 Utility 57 | 1 1 4 7 5 6 2 9 1 8 13 Device 18 | . . 1 1 . 3 . 1 1 4 7 Storage 6 | 1 . . 2 . 1 . 1 . . 1 Processor 23 | . 1 1 4 3 1 2 6 . 2 3 Hackware 5 | . . . . . 1 . 1 . 2 1 Protection 5 | . . 2 . 2 . . . . . 1 Artifact . | . . . . . . . . . . . Weapon 21 | 2 . 5 5 . 1 1 1 . 2 4 Energy Gun 9 | . . 3 2 . . . . . 2 2 Energy Cannon . | . . . . . . . . . . . Ballistic Gun 4 | 2 . 2 . . . . . . . . Ballistic Cannon . | . . . . . . . . . . . Launcher 1 | . . . 1 . . . . . . . Special Weapon . | . . . . . . . . . . . Impact Weapon . | . . . . . . . . . . . Slashing Weapon 5 | . . . 2 . 1 1 1 . . . Piercing Weapon 2 | . . . . . . . . . . 2 Special Melee Weapon . | . . . . . . . . . . . Unidentified Prototypes 17 | . . 2 1 . 1 . 1 . 2 10 Corrupted Parts 5 | . . 3 2 . . . . . . . System Corruption 27 | . . 17 10 . . . . . . . Parts Lost 35 | . . . . . . 10 . 9 1 15 Power 5 | . . . . . . . . 1 . 4 Propulsion 16 | . . . . . . 6 . 6 . 4 Utility 10 | . . . . . . 2 . 2 . 6 Weapon 4 | . . . . . . 2 . . 1 1 Highest Loss Streak 14 | . . . . . . 7 . 5 1 14 To Critical Strikes 1 | . . . . . . . . . . 1 Average Backups 7 | 1 2 7 8 8 9 9 4 5 6 7 Power 1 | . 1 1 1 1 1 2 2 3 1 . Propulsion 1 | . . . 2 . 1 2 . . 1 2 Utility 2 | . . 2 1 4 5 3 2 1 3 3 Weapon 1 | . 1 3 3 3 1 . . . . . Tool/Special . | . . . . . . . . . . . Unused Backups 23 | . . 5 6 1 6 3 . . . 2 Power 3 | . . 1 . . 1 1 . . . . Propulsion 4 | . . . 2 . . 1 . . . 1 Utility 10 | . . 1 3 1 4 1 . . . . Weapon 6 | . . 3 1 . 1 . . . . 1 Tool/Special . | . . . . . . . . . . . Average Slot Usage (%) 88 | . 96 91 98 98 97 91 75 67 78 74 Engine 2 | . 14 10 . 1 1 . 1 . . . Core 4 | . . . 8 5 4 5 5 9 6 1 Leg 9 | . 28 22 26 . . . . . . . Hover 1 | . . . . . . . 3 7 3 . Flight 11 | . . . . 28 26 25 13 6 11 15 Device 4 | . . . 5 6 6 3 . 3 5 6 Storage 6 | . 14 11 9 7 6 6 1 . 3 3 Processor 27 | . 10 17 21 29 32 39 43 33 32 30 Hackware 1 | . . . . . 2 . 1 . 6 3 Protection 3 | . . 7 8 1 2 1 . . . . Energy Gun 4 | . . 7 16 . . . . . 2 2 Ballistic Gun 3 | . 28 14 . . . . . . . . Slashing Weapon 4 | . . . 1 15 10 5 3 5 3 . Peak Build Rating 144 | 6 7 20 33 42 56 59 71 74 124 144 Average Rating 51 | 4 6 13 26 41 52 55 51 65 94 110 On Entrance 39 | . 6 7 19 33 42 56 32 69 50 124 Avg Prop Armor Cover (%) 8 | . . . . . 7 . 8 9 8 . Naked Turns . | . . . . . . . . . . . Heaviest Build 64 | 13 13 33 30 21 24 24 23 23 35 64 Greatest Support 64 | 20 20 20 40 24 24 24 24 28 51 64 Greatest Overweight (x) 6 | . . 1 1 . 2 . 1 1 2 6 Average Overweight (x) . | . . . . . . . . . . . Largest Inventory Capacity 10 | 8 8 8 10 10 10 10 10 10 10 10 Average Capacity 8 | 6 8 8 8 10 10 10 6 5 9 9 Most Carried 10 | 2 3 8 10 10 10 10 5 5 10 10 Average Carried 7 | 1 2 7 8 8 9 9 4 4 7 8 Final Capacity 10 | 8 8 8 10 10 10 10 10 5 10 5 Final Carried 10 | 2 3 8 10 10 10 6 5 5 10 5 Class Distribution -------------------- 37% | Mutant 36% | Sprinter 15% | Scavenger-Mutant 4% | Hacker-Mutant 3% | Hacker-Scout Dominant Class ---------------- Mutant | -10/Materials Mutant | -9/Materials Scavenger-Mutant | -8/Materials Sprinter | -7/Factory Sprinter | -6/Factory Sprinter | -6/Extension Sprinter | -5/Factory Mutant | -4/Factory Hacker-Mutant | -3/Research Sprinter | -3/Testing Resources | -11 -10 -9 -8 -7 -6 -6 -5 -4 -3 -3 ----------- Run | Yrd Mat Mat Mat Fac Fac Ext Fac Fac Res Tes Matter Collected 2013 | 260 . 249 316 180 21 224 28 157 240 338 Remotely . | . . . . . . . . . . . Salvage Created 3629 | . . 358 643 280 214 451 28 190 559 906 Parts 167 | . . 15 31 13 7 26 4 2 19 50 Haulers Intercepted 8 | . . . . 2 2 . . 1 3 . Recyclers Shooed 1 | . . . 1 . . . . . . . Parts Field Recycled . | . . . . . . . . . . . Retrieved Matter . | . . . . . . . . . . . Parts Self-Destructed . | . . . . . . . . . . . Prevented . | . . . . . . . . . . . Parts Restored . | . . . . . . . . . . . Kills | -11 -10 -9 -8 -7 -6 -6 -5 -4 -3 -3 ------- Run | Yrd Mat Mat Mat Fac Fac Ext Fac Fac Res Tes Combat Hostiles Destroyed 42 | . . 8 14 2 . 6 . 1 1 10 Melee 20 | . . . . 2 . 6 . 1 1 10 Guns 17 | . . 8 9 . . . . . . . AOE 5 | . . . 5 . . . . . . . Classes Destroyed 15 | . . 3 4 2 . 1 . . 1 4 Worker 1 | . . 1 . . . . . . . . Builder 1 | . . . . . . . . . . 1 Hauler 8 | . . . . 2 2 . . 1 3 . Recycler 4 | . . . 1 . . 1 . . 1 1 Operator 1 | . . . . . . . . . 1 . Watcher 6 | . . . . 1 1 1 1 . 1 1 Swarmer 7 | . . . 4 . . 3 . . . . Grunt 14 | . . 7 6 . . . . . 1 . Brawler 1 | . . . 1 . . . . . . . Duelist 2 | . . . 2 . . . . . . . Sentry 6 | . . 1 1 2 . 1 . 1 . . Hunter 4 | . . . . . . 2 . . . 2 Programmer 5 | . . . . . . . . . . 5 Striker 2 | . . . . . . . . . . 2 Alpha 7 1 | . . . . . . . . . . 1 Best Kill Streak 5 | . . 2 4 2 1 5 1 1 3 3 Combat Bots Only 5 | . . 2 4 1 . 5 . 1 1 3 Max Kills in Single Turn 3 | . . 1 3 1 1 1 1 1 1 1 Gunslinging . | . . . . . . . . . . . Exploded 3 | . . . 3 . . . . . . . Melee 1 | . . . . 1 . 1 . 1 1 1 Uniques/NPCs Destroyed . | . . . . . . . . . . . Combat | -11 -10 -9 -8 -7 -6 -6 -5 -4 -3 -3 -------- Run | Yrd Mat Mat Mat Fac Fac Ext Fac Fac Res Tes Hostile Shots Fired 469 | . . 72 29 48 3 116 2 34 7 158 Missed 178 | . . 27 9 28 2 52 1 14 3 42 Hits 291 | . . 45 20 20 1 64 1 20 4 116 Melee 8 | . . . 4 . . . . . . 4 Projectile 283 | . . 45 16 20 1 64 1 20 4 112 Critical Strikes 17 | . . . 3 . . 1 . 1 . 12 Damage Taken 5617 | . . 571 448 132 23 1005 24 624 101 2689 Core 2004 | . . 90 132 31 . 237 . 210 23 1281 Absorbed by Shields 141 | . . . . . . 8 . . . 133 Redirected to Shielding 134 | . . . . 22 15 97 . . . . Regen/Repaired (Parts) 25 | . . . . . 25 . . . . . Core Remaining (%) 87 | 100 100 77 76 95 . 72 100 81 . . Volleys Fired 63 | . . 35 24 . . . . . . 4 Largest 2 | . . 2 2 . . . . . . 2 Hottest 188 | . . 90 95 . . . . . . 188 Shots Fired 124 | . . 70 46 . . . . . . 8 Gun 122 | . . 70 44 . . . . . . 8 Cannon . | . . . . . . . . . . . Launcher 2 | . . . 2 . . . . . . . Special . | . . . . . . . . . . . Kinetic 52 | . . 52 . . . . . . . . Thermal 16 | . . 10 . . . . . . . 6 Explosive 2 | . . . 2 . . . . . . . Electromagnetic 54 | . . 8 44 . . . . . . 2 Robot Hit Streak 28 | . . 10 28 . . . . . . 1 Robot Miss Streak 4 | . . 4 3 . . . . . . 2 Penetration Max . | . . . . . . . . . . . Secondary Targets 1 | . . . 1 . . . . . . . Max Gunslinging Chain 1 | . . . 1 . . . . . . . Shots Hit Robots 198 | . . 48 41 11 13 15 1 11 16 42 Core Hits 116 | . 1 28 32 9 4 7 1 5 10 19 Critical Kills . | . . . . . . . . . . . Critical Parts Destroyed 1 | . . 1 . . . . . . . . Critical Strikes 16 | . . 1 . 3 3 3 . 4 . 2 Destroy 1 | . . 1 . . . . . . . . Sever 13 | . . . . 3 3 3 . 4 . . Impale 2 | . . . . . . . . . . 2 Melee Attacks 168 | . . . 6 21 37 18 3 16 26 41 Impact . | . . . . . . . . . . . Slashing 127 | . . . 6 21 37 18 3 16 26 . Piercing 41 | . . . . . . . . . . 41 Sneak Attacks 17 | . . . . 2 3 2 . 2 5 3 Combat Hostiles 1 | . . . . . . 1 . . . . Follow-up Attacks 6 | . . . . 2 4 . . . . . Damage Inflicted 7592 | . 2 647 1060 295 456 978 39 490 864 2761 Guns 1455 | . . 647 720 . . . . . . 88 Cannons . | . . . . . . . . . . . Explosions 340 | . . . 340 . . . . . . . Melee 5795 | . . . . 295 456 978 39 490 864 2673 Ramming 2 | . 2 . . . . . . . . . Kinetic 426 | . . 426 . . . . . . . . Thermal 351 | . . 129 134 . . . . . . 88 Explosive 206 | . . . 206 . . . . . . . Electromagnetic 812 | . . 92 720 . . . . . . . Impact . | . . . . . . . . . . . Slashing 3122 | . . . . 295 456 978 39 490 864 . Piercing 2673 | . . . . . . . . . . 2673 Highest Corruption 17 | . . 17 10 . . . . . . 6 Average Corruption 6 | . . 12 9 . . . . . . 2 Corruption Purged . | . . . . . . . . . . . Corruption Blocked . | . . . . . . . . . . . Effects 14 | . . 1 9 . . . . . . 4 Message Errors 4 | . . 1 3 . . . . . . . Matter Fused 1 | . . . . . . . . . . 1 Heat Flow Errors 3 | . . . 1 . . . . . . 2 Energy Discharges 1 | . . . 1 . . . . . . . Data Loss (minor) 5 | . . . 4 . . . . . . 1 Overload Shots . | . . . . . . . . . . . Overflow Damage 449 | . . . 9 . 50 53 . 14 . 323 Projectiles . | . . . . . . . . . . . Explosions 9 | . . . 9 . . . . . . . Melee 440 | . . . . . 50 53 . 14 . 323 Knockbacks . | . . . . . . . . . . . Impact . | . . . . . . . . . . . Kinetic . | . . . . . . . . . . . Secondary . | . . . . . . . . . . . Self-Inflicted Damage 70 | . . . 70 . . . . . . . Shots 2 | . . . 2 . . . . . . . Rammed . | . . . . . . . . . . . Targets Rammed 1 | . 1 . . . . . . . . . Kicked 1 | . 1 . . . . . . . . . Crushed . | . . . . . . . . . . . Highest Temperature 263 | . . 151 263 . . 6 . . . 258 Average Temperature 89 | . . 58 92 . . 4 . . . 130 Received Heat Transfer 794 | . . 264 144 24 . 104 9 63 24 162 Effects 3 | . . . 1 . . . . . . 2 Energy Bleed 1 | . . . 1 . . . . . . . Interference 2 | . . . . . . . . . . 2 Siege Activations . | . . . . . . . . . . . Martial Activations . | . . . . . . . . . . . Shielding Activations . | . . . . . . . . . . . Robots Disrupted . | . . . . . . . . . . . Combat Hostiles . | . . . . . . . . . . . Robots Corrupted . | . . . . . . . . . . . Combat Hostiles . | . . . . . . . . . . . Parts Fried 4 | . . . 4 . . . . . . . Impact Corruptions . | . . . . . . . . . . . Robots Melted . | . . . . . . . . . . . Combat Hostiles . | . . . . . . . . . . . Parts Melted . | . . . . . . . . . . . Heat Transferred 421 | . . 160 150 . . . . . . 111 Parts Sabotaged . | . . . . . . . . . . . Parts Stolen . | . . . . . . . . . . . Parts Stripped . | . . . . . . . . . . . Power Chain Reactions 2 | . . . 2 . . . . . . . Alert | -11 -10 -9 -8 -7 -6 -6 -5 -4 -3 -3 ------- Run | Yrd Mat Mat Mat Fac Fac Ext Fac Fac Res Tes Maximum Alert Level 1 | . . . 1 . 1 1 . . . . Low Security (%) 95 | 100 100 100 94 100 82 81 100 100 100 100 Level 1 4 | . . . 5 . 17 18 . . . . Level 2 . | . . . . . . . . . . . Level 3 . | . . . . . . . . . . . Level 4 . | . . . . . . . . . . . Level 5 . | . . . . . . . . . . . High Security . | . . . . . . . . . . . Max Security . | . . . . . . . . . . . Peak Influence 224 | . . 42 207 87 224 211 82 52 44 197 Initial 96 | . . . 14 87 25 96 61 37 . 8 Average 59 | . . 15 127 55 63 140 51 20 9 84 Influence Increases 1988 | . . 212 425 97 355 230 76 105 146 342 Destroy 0b10 Robot/C 840 | . . 160 280 40 . 120 . 20 20 200 Destroy 0b10 Robot/NC 105 | . . 5 5 15 15 10 5 5 30 15 Destroy Leader 188 | . . 30 50 26 6 32 2 12 8 22 Successful Hack 122 | . . . 17 12 48 7 5 . 33 . Disable Machine 90 | . . . 15 . 15 . . 15 15 30 Anti-Garrison Action 150 | . . . . . 150 . . . . . Destroy Structure 73 | . . 2 28 4 16 1 4 8 10 . Partial Spotted 45 | . . . . . 15 . . 15 15 . Lose Combat Pursuer 375 | . . 15 30 . 90 60 60 30 15 75 Influence Decreases 1926 | . . 178 266 236 211 302 125 182 131 295 Entered New Map 369 | . . . 20 106 29 102 65 40 . 7 Time Decay 1245 | . . 178 246 130 182 100 60 80 121 148 Lost Part 312 | . . . . . . 100 . 62 10 140 Squads Dispatched 11 | . . 1 . 1 4 . . . 3 2 Investigation . | . . . . . . . . . . . Extermination 4 | . . . . 1 1 . . . 1 1 Reinforcement 4 | . . 1 . . . . . . 2 1 Assault 2 | . . . . . 2 . . . . . Garrison 1 | . . . . . 1 . . . . . Intercept . | . . . . . . . . . . . Searches Triggered . | . . . . . . . . . . . Construction Impeded . | . . . . . . . . . . . Haulers Reinforced . | . . . . . . . . . . . Active Scanning Responses . | . . . . . . . . . . . Cargo Convoy Interrupts . | . . . . . . . . . . . Stealth | -11 -10 -9 -8 -7 -6 -6 -5 -4 -3 -3 --------- Run | Yrd Mat Mat Mat Fac Fac Ext Fac Fac Res Tes Distress Signals 4 | . . . 1 . 1 2 . . . . Communications Jammed . | . . . . . . . . . . . Distress Signals . | . . . . . . . . . . . Times Spotted 96 | . 1 11 13 3 7 17 5 7 9 23 Peak Tracking Total 11 | . 1 3 4 1 5 6 5 4 4 11 Tactical Retreats 14 | . . 1 1 . 4 2 2 1 1 2 Traps | -11 -10 -9 -8 -7 -6 -6 -5 -4 -3 -3 ------- Run | Yrd Mat Mat Mat Fac Fac Ext Fac Fac Res Tes Traps Triggered 5 | . . . . 1 . 2 . 1 . 1 Indirectly . | . . . . . . . . . . . Trap Hack Attempts . | . . . . . . . . . . . Triggered . | . . . . . . . . . . . Disarmed . | . . . . . . . . . . . Reprogrammed . | . . . . . . . . . . . Reused . | . . . . . . . . . . . Traps Extracted . | . . . . . . . . . . . Installed . | . . . . . . . . . . . Triggered . | . . . . . . . . . . . Machines | -11 -10 -9 -8 -7 -6 -6 -5 -4 -3 -3 ---------- Run | Yrd Mat Mat Mat Fac Fac Ext Fac Fac Res Tes Machines Disabled 7 | . . . 1 . 2 . . 1 1 2 Max in Single Turn 1 | . . . 1 . 1 . . 1 1 1 Garrison Access 2 | . . . 1 . 1 . . . . . Machines Repaired . | . . . . . . . . . . . Machines Dismantled . | . . . . . . . . . . . Machines Sabotaged . | . . . . . . . . . . . Overloaded Fab Kills . | . . . . . . . . . . . Hacking | -11 -10 -9 -8 -7 -6 -6 -5 -4 -3 -3 --------- Run | Yrd Mat Mat Mat Fac Fac Ext Fac Fac Res Tes Machines Accessed 29 | . 1 . 5 4 4 5 2 . 6 2 Terminals 18 | . 1 . 3 2 1 5 1 . 4 1 Fabricators 1 | . . . . . 1 . . . . . Repair Stations 2 | . . . . 1 1 . . . . . Recycling Units . | . . . . . . . . . . . Scanalyzers 6 | . . . 1 1 1 . 1 . 1 1 Garrison Access 2 | . . . 1 . . . . . 1 . Total Hacks 62 | . 1 . 19 6 10 10 4 . 9 3 Successful 19 | . 1 . 5 1 6 2 2 . 2 . Failed 41 | . . . 13 5 4 8 1 . 7 3 Catastrophic 9 | . . . 2 1 . 2 . . 3 1 Database Lockouts 2 | . . . 1 . . . 1 . . . Manual 18 | . 1 . 10 2 . . . . 4 1 Terminals 35 | . 1 . 10 2 3 10 2 . 6 1 Fabricators 1 | . . . . . 1 . . . . . Repair Stations 6 | . . . . 2 4 . . . . . Recycling Units . | . . . . . . . . . . . Scanalyzers 14 | . . . 4 2 2 . 2 . 2 2 Garrison Access 6 | . . . 5 . . . . . 1 . Terminal Hacks 9 | . 1 . 3 . 1 2 1 . 1 . Open Door 1 | . . . . . . 1 . . . . Alert Level 1 | . . . . . . 1 . . . . Locate Traps 1 | . . . . . . . . . 1 . Zone Layout 6 | . 1 . 3 . 1 . 1 . . . Fabricator Hacks 1 | . . . . . 1 . . . . . Network Status 1 | . . . . . 1 . . . . . Repair Station Hacks 4 | . . . . 1 3 . . . . . Scan Component 3 | . . . . 1 2 . . . . . Repair 1 | . . . . . 1 . . . . . Recycling Unit Hacks . | . . . . . . . . . . . Scanalyzer 4 | . . . 1 . 1 . 1 . 1 . Retrieve Study 4 | . . . 1 . 1 . 1 . 1 . Garrison Access Hacks 1 | . . . 1 . . . . . . . Seal Access 1 | . . . 1 . . . . . . . Unauthorized Hacks . | . . . . . . . . . . . Terminals . | . . . . . . . . . . . Fabricators . | . . . . . . . . . . . Repair Stations . | . . . . . . . . . . . Recycling Units . | . . . . . . . . . . . Scanalyzers . | . . . . . . . . . . . Garrison Access . | . . . . . . . . . . . Data Cores Recovered . | . . . . . . . . . . . Used . | . . . . . . . . . . . Hacking Detections 27 | . 1 . 4 3 4 5 2 . 6 2 Full Trace Events . | . . . . . . . . . . . Feedback Events . | . . . . . . . . . . . Feedback Blocked . | . . . . . . . . . . . Robot Schematics Acquired . | . . . . . . . . . . . Robots Built . | . . . . . . . . . . . Authchips . | . . . . . . . . . . . Time . | . . . . . . . . . . . Total Robot Build Rating . | . . . . . . . . . . . Part Schematics Acquired . | . . . . . . . . . . . Parts Built . | . . . . . . . . . . . Authchips . | . . . . . . . . . . . Time . | . . . . . . . . . . . Total Part Build Rating . | . . . . . . . . . . . Part Studies Acquired 4 | . . . 1 . 1 . 1 . 1 . Parts Repaired 1 | . . . . . 1 . . . . . Time 19 | . . . . . 19 . . . . . Parts Recycled . | . . . . . . . . . . . Recycled Matter . | . . . . . . . . . . . Retrieved Matter . | . . . . . . . . . . . Retrieved Components . | . . . . . . . . . . . Parts Scanalyzed . | . . . . . . . . . . . Part Schematics Acquired . | . . . . . . . . . . . Parts Damaged . | . . . . . . . . . . . Bothacking | -11 -10 -9 -8 -7 -6 -6 -5 -4 -3 -3 ------------ Run | Yrd Mat Mat Mat Fac Fac Ext Fac Fac Res Tes Used RIF Installer . | . . . . . . . . . . . Robots Hacked . | . . . . . . . . . . . Non-combat . | . . . . . . . . . . . Combat . | . . . . . . . . . . . Robot Hacks Applied . | . . . . . . . . . . . Relay Couplers Released 2 | . . . . . 2 . . . . . Machine Destruction 2 | . . . . . 2 . . . . . Fabnet Peak Effective % . | . . . . . . . . . . . Robots Rewired . | . . . . . . . . . . . Allies Hacked . | . . . . . . . . . . . Hacks Repelled . | . . . . . . . . . . . Allies | -11 -10 -9 -8 -7 -6 -6 -5 -4 -3 -3 -------- Run | Yrd Mat Mat Mat Fac Fac Ext Fac Fac Res Tes Total Allies . | . . . . . . . . . . . Largest Group . | . . . . . . . . . . . Highest-Rated Group . | . . . . . . . . . . . Highest-Rated Ally . | . . . . . . . . . . . Total Orders . | . . . . . . . . . . . Ally Attacks . | . . . . . . . . . . . Total Damage . | . . . . . . . . . . . Kills . | . . . . . . . . . . . Allies Corrupted . | . . . . . . . . . . . Allies Melted . | . . . . . . . . . . . Intel | -11 -10 -9 -8 -7 -6 -6 -5 -4 -3 -3 ------- Run | Yrd Mat Mat Mat Fac Fac Ext Fac Fac Res Tes Active Infowar (turns) 1486 | . . . 16 231 401 126 . 155 392 165 Optics 232 | . . . . . . . . . 139 93 Sensors 1451 | . . . 16 231 401 126 . 155 389 133 ECM 16 | . . . . . 15 . . . 1 . Robot Analysis Total . | . . . . . . . . . . . Derelict Logs Recovered . | . . . . . . . . . . . Drone Launches . | . . . . . . . . . . . Drone Recoveries . | . . . . . . . . . . . Exploration | -11 -10 -9 -8 -7 -6 -6 -5 -4 -3 -3 ------------- Run | Yrd Mat Mat Mat Fac Fac Ext Fac Fac Res Tes Turns Passed 3255 | 46 155 501 537 263 401 218 128 191 434 381 Spaces Moved 4239 | 34 125 213 312 582 851 354 252 274 762 480 Core 12 | 7 . . . . . . . . . 5 Treads . | . . . . . . . . . . . Legs 677 | 27 125 213 312 . . . . . . . Wheels . | . . . . . . . . . . . Hover 278 | . . . . . . . 34 210 34 . Flight 3272 | . . . . 582 851 354 218 64 728 475 Fastest Speed 26 | 50 120 120 120 26 26 26 32 32 32 32 Average Speed 49 | 105 120 161 122 26 28 26 36 51 41 34 Slowest Speed 350 | 120 120 190 190 26 182 34 120 120 197 350 Overloaded Moves . | . . . . . . . . . . . Propulsion Burnouts . | . . . . . . . . . . . Robots Hopped 25 | . . . . 7 1 6 . . . 11 Potential Cave-ins . | . . . . . . . . . . . Cave-ins Triggered . | . . . . . . . . . . . Exploration Rate (%) 24 | 3 36 27 35 21 25 44 8 9 21 44 Regions Visited 10 Branch Regions 2 Pre-discovered Areas . | . . . . . . . . . . . Known Exits Taken 6 | . . . . 1 1 1 1 1 1 . Unknown Exits Taken 4 | 1 1 1 1 . . . . . . . Scrap Searched . | . . . . . . . . . . . Spaces Dug 34 | . . . 2 4 16 1 2 4 5 . Terrain Destroyed 65 | . . . 33 4 16 1 2 4 5 . Melee 34 | . . . 2 4 16 1 2 4 5 . Projectile . | . . . . . . . . . . . AOE 31 | . . . 31 . . . . . . . Terrain Rammed . | . . . . . . . . . . . Walls Destroyed . | . . . . . . . . . . . Machines Disabled . | . . . . . . . . . . . Actions | -11 -10 -9 -8 -7 -6 -6 -5 -4 -3 -3 --------- Run | Yrd Mat Mat Mat Fac Fac Ext Fac Fac Res Tes Total 4963 | 41 129 307 419 655 960 435 278 299 838 602 Wait 131 | . 2 16 10 33 38 13 . 5 . 14 Move 4182 | 33 124 212 311 568 848 341 251 273 761 460 Hop 22 | . . . . 6 1 6 . . . 9 Pick Up 62 | 2 1 7 14 8 10 7 3 . 6 4 Fast Attach 84 | 6 1 9 8 4 5 1 7 3 17 23 Attach 35 | . . . 4 5 3 7 2 1 8 5 Detach 34 | . . 6 2 1 2 . 1 1 10 11 Swap 58 | . . 7 17 4 7 6 7 . 1 9 Drop 108 | . . 15 25 9 17 7 4 . 9 22 Fire 63 | . . 35 24 . . . . . . 4 Melee 154 | . . . 4 17 29 18 3 16 26 41 Ram . | . . . . . . . . . . . Kick 1 | . 1 . . . . . . . . . Crush . | . . . . . . . . . . . Escape Stasis 29 | . . . . . . 29 . . . . Rewire . | . . . . . . . . . . . Trap . | . . . . . . . . . . . Miscellaneous . | . . . . . . . . . . . Route ------- -11/Scrapyard -10/Materials (discovered 2 exits: [*Mat] / [*Min]) -9/Materials -8/Materials (discovered 3 exits: *Fac / [*Sto x2]) -7/Factory -6/Factory (discovered 2 exits: *Low / *Ext) -6/Extension -5/Factory -4/Factory -3/Research -3/Testing History --------- Turn | Location | Event 7 | -11/Scrapyard | Discovered new exit (range 15) 47 | -11/Scrapyard | Entered Materials 134 | -10/Materials | Discovered new exit (range 7) 196 | -10/Materials | Discovered new exit (range 6) 202 | -10/Materials | Entered another Materials area 202 | -9/Materials | Evolved 2 slots: Utility x2 316 | -9/Materials | Build established: Mutant 567 | -9/Materials | Discovered new exit (range 15) 698 | -9/Materials | System corruption reached 10% 703 | -9/Materials | Entered another Materials area 703 | -8/Materials | Evolved 2 slots: Propulsion x1, Utility x1 744 | -8/Materials | Discovered new exit (range 9) 912 | -8/Materials | System corruption reached 10% 1010 | -8/Materials | Build established: Scavenger-Mutant 1152 | -8/Materials | Central database locked down 1201 | -8/Materials | Discovered new exit (range 16) 1201 | -8/Materials | Discovered new exit (range 17) 1240 | -8/Materials | Entered Factory 1240 | -7/Factory | Evolved 2 slots: Propulsion x1, Utility x1 1478 | -7/Factory | Discovered new exit (range 8) 1503 | -7/Factory | Identified exit to Factory 1503 | -7/Factory | Entered another Factory area 1503 | -6/Factory | Evolved 2 slots: Utility x2 1566 | -6/Factory | Build established: Sprinter 1629 | -6/Factory | Repaired Blade Saw 1643 | -6/Factory | Garrison activated, responded to threat 1654 | -6/Factory | Spotted B-75 Beast 1802 | -6/Factory | Discovered new exit (range 7) 1804 | -6/Factory | Identified exit to Lower Caves 1894 | -6/Factory | Discovered new exit (range 16) 1904 | -6/Factory | Identified exit to Extension 1904 | -6/Factory | Entered Extension 2078 | -6/Extension | Lost 3 parts (1n1u1w) 2101 | -6/Extension | Spotted B-75 Beast 2112 | -6/Extension | Spotted B-75 Beast 2121 | -6/Extension | Discovered new exit (range 3) 2121 | -6/Extension | Identified exit to Factory 2122 | -6/Extension | Entered Factory 2122 | -5/Factory | Evolved 2 slots: Power x1, Propulsion x1 2150 | -5/Factory | Lost 7 parts (5n1u1w) 2174 | -5/Factory | Central database locked down 2245 | -5/Factory | Discovered new exit (range 16) 2250 | -5/Factory | Identified exit to Factory 2250 | -5/Factory | Entered another Factory area 2250 | -4/Factory | Evolved 2 slots: Utility x2 2425 | -4/Factory | Discovered new exit (range 16) 2441 | -4/Factory | Identified exit to Research 2441 | -4/Factory | Entered Research 2441 | -3/Research | Evolved 2 slots: Propulsion x1, Utility x1 2457 | -3/Research | Lost 5 parts (1p3n1u) 2550 | -3/Research | Build established: Mutant 2863 | -3/Research | Discovered new exit (range 8) 2866 | -3/Research | Identified exit to Testing 2875 | -3/Research | Entered Testing 2915 | -3/Testing | Found Prototype Device 2915 | -3/Testing | Identified Exp. Thermal Shield 2990 | -3/Testing | Found Prototype Processor 2990 | -3/Testing | Identified Exp. Terrain Scan Processor 3019 | -3/Testing | Found Prototype Hackware 3019 | -3/Testing | Identified Ghost Barrier 3157 | -3/Testing | Spotted Striker 3157 | -3/Testing | Spotted Striker 3164 | -3/Testing | Spotted Alpha 7 3165 | -3/Testing | Destroyed Striker 3181 | -3/Testing | Destroyed Striker 3205 | -3/Testing | Core integrity fell below 50% 3226 | -3/Testing | Core integrity fell below 20% 3232 | -3/Testing | Destroyed Alpha 7 3256 | -3/Testing | Destroyed by P-80 Master with Gamma Rifle Last Messages --------------- 03228_ Slug penetrates Earth. 03229_ U-05 Engineer lays Concrete. 03231_ Penetrated by Slug. 03231_ Slug penetrates Earth. 03231_ U-05 Engineer builds a Wall. 03232_ Alpha 7 destroyed. 03235_ Acquired Impulse Thruster Array+. 03235_ U-05 Engineer builds a Wall. 03237_ Acquired Impulse Thruster. 03239_ Acquired 20 matter. 03239_ Sneak attack on U-05 Engineer. 03239_ U-05 Engineer destroyed. 03241_ System corrupted: Matter fused (-8). 03241_ Acquired 8 matter. 03242_ Acquired Prototype Protection. 03242_ Identified Centrium Light Armor Plating. 03244_ Acquired Impulse Thruster Array+. 03253_ Door malfunctions. 03253_ P-80 Master resets P-80 Master, system corruption cleaned. Map ----- +----------------------------------------------------+ | | | | | | | | | | | | | | | | | | | | | | | ????????????????????????????????????????? | | ????????????????????????????????????????? | | ????????????????????????????????????????? | | ????????????????????????????????????????? | | ????????????????????????????????????????? | | ????????????????????????????????????????? | | ????????????????????????????????????????? | | ????????????????????????????????????????? | | ????????????????????????????????????????? | | ????????????????????????????????????????? | | ??????####??????????????????????????????? | | ??????#""""?????????????????????????????? | | ??????#""&""?????########???????????????? | | ??????#"" ""?###%# % ##??????????????? | | ??????#"" !!##%@#######"#??????????????? | | ??????#"" !%/==!p%! ! #??????????????? | | ??????#" [/!!%pp!!=%! "#?????????????? | | ??????#" #;!*###### ##?????????????? | | ??????#""" ###;##% # #??????????????? | | ??????##### ???## # # # #??????????????? | | ??????????#??????# #### #??????????????? | | ??????????????????##??# #??????????????? | | ??????????????????????# #??????????????? | | ??????????????????????# #??????????????? | | ??????????????????????# #??????????????? | | ??????????????????????# #??????????????? | | ??????????????????????# #??????????????? | | ??????????????????????# #??????????????? | | ??????????????????????# #??????????????? | | ??????????????????????# #??????????????? | | ??????????????????????# #??????????????? | | ??????????????????????# #??????????????? | | ????????????########### #??????????????? | | ????????????# # #??????????????? | | ????????????# ! """ # #?????######???? | | ????????????#"" """ # ####### !##### | | ????????????#"" """ + [%= " % | | ????????????#"T """ # [ "T ! | | ????????????#"" """ # ####### ###/# | +----------------------------------------------------+ Best States ------------- Heat Dissipation 72 Coolant Potential 120 Energy Generation 41 Energy Capacity 890 Matter Stores 300 Matter Capacity 300 Sight Range 22 Robot Scan Range 16 Terrain Scan Density 10 ECM Strength 2 Additional Mass Support 12 Armor Coverage 450 Propulsion Shielding 66 Phase Shifting 10 Evasion (%) 73 Targeting Accuracy 18 Melee Accuracy 37 Target Analysis 8 Core Analysis 9 Armor Integrity Analysis 30 Offensive Hacking 14 Defensive Hacking 20 Item Schematics ----------------- None Robot Schematics ------------------ None Fabricated ------------ Nothing Repaired ---------- Blade Saw | 37% | -6/Factory Studied --------- Cesium-ion Thruster | -8/Materials | Hacked Katana | -6/Factory | Hacked Nuclear Pulse Thruster | -5/Factory | Hacked Impulse Thruster Array | -3/Research | Hacked Alien Tech Used ----------------- None Achievements -------------- None Challenges ------------ None Game ------ Seed ShiftHypercooledMesh Manual? 0 Play Time 01:59:11 Cumulative 67.7 hours Start 2026.02.13 @ 09:47:37 End 2026.02.13 @ 12:30:31 Sessions 3 Manual Loads 0 Difficulty Rogue Special Mode None Game No. 129 Rogue 129 Adventurer 0 Explorer 0 Win Type - Total 1 Types 1/0/0/0/0/0/0/0/0/0 Lore% 17 Gallery% 33 Achievement% 22 Wizard Run 0 Options --------- Layout 1 ASCII 0 Keyboard 0 Movement Mouse Keybinds 0 Fullscreen 2 Font 20/X11 Map View 50x35 Zoom Use 0% Tactical HUD 1 Map Filters NONE Filters NONE Steam 1 RUN: 47d747e6-f197-487b-bd07-a7946de04e75